bitfinex/quotes_BTCUSD_20250328
["timestamp","ask_amount","ask_price","bid_price","bid_amount"]
[1743164620903,8.2017336,85300.0,85299.0,0.7158891]
[1743164621100,8.2017336,85300.0,85299.0,0.7098891]
[1743164621335,8.2017336,85300.0,85299.0,0.7088891]
[1743164621872,8.2017336,85300.0,85299.0,1.18359638]
[1743164622077,8.2017336,85300.0,85299.0,1.20315734]
[1743164622547,8.2017336,85300.0,85299.0,1.21769819]
[1743164623150,8.19294112,85300.0,85299.0,1.21769819]
[1743164625698,8.19294112,85300.0,85299.0,1.51769819]
[1743164626262,8.19294112,85300.0,85299.0,3.01572519]
[1743164626470,8.19294112,85300.0,85299.0,3.06452519]
[1743164627123,8.19294112,85300.0,85299.0,3.05452519]
[1743164627326,8.19294112,85300.0,85299.0,3.06052519]
[1743164627482,8.19294112,85300.0,85299.0,3.06652519]
[1743164627818,8.19294112,85300.0,85299.0,3.06052519]
[1743164628199,8.19294112,85300.0,85299.0,3.06652519]
[1743164628948,8.19294112,85300.0,85299.0,3.06052519]
[1743164629378,8.19294112,85300.0,85299.0,3.06652519]
[1743164630083,7.65618012,85300.0,85299.0,3.07152519]
[1743164630306,7.02316065,85300.0,85299.0,3.07152519]
[1743164630484,6.99081876,85300.0,85299.0,3.79543129]
[1743164633572,5.84473827,85300.0,85299.0,3.68117365]
[1743164633767,4.46411749,85300.0,85299.0,4.12407365]
[1743164633981,3.84229613,85300.0,85299.0,4.12407365]
[1743164634203,3.78360982,85300.0,85299.0,4.12407365]
[1743164634621,3.76942983,85300.0,85299.0,4.11207365]
[1743164634817,3.72722983,85300.0,85299.0,4.11807365]
[1743164635610,3.72722983,85300.0,85299.0,4.11195365]
[1743164635798,3.72722983,85300.0,85299.0,4.11795365]
[1743164636135,3.72722983,85300.0,85299.0,4.12395365]
[1743164636552,3.72722983,85300.0,85299.0,4.11795365]
[1743164636792,3.72722983,85300.0,85299.0,2.70092665]
[1743164636992,3.72722983,85300.0,85299.0,7.28472665]
[1743164638327,3.71080983,85300.0,85299.0,7.28472665]
[1743164638532,3.65212338,85300.0,85299.0,7.28472665]
[1743164639053,3.53516339,85300.0,85299.0,7.40832665]
[1743164639453,3.53516339,85300.0,85299.0,6.70832665]
[1743164639651,3.51749339,85300.0,85299.0,6.70832665]
[1743164640504,3.51052339,85300.0,85299.0,6.70832665]
[1743164642490,3.51052339,85300.0,85299.0,7.40832665]
[1743164643628,3.51052339,85300.0,85299.0,7.28472665]
[1743164644077,3.51052339,85300.0,85299.0,6.92990165]
[1743164644249,3.51052339,85300.0,85299.0,6.58761965]
[1743164644451,3.4778334,85300.0,85299.0,6.58761965]
[1743164644655,3.4672034,85300.0,85299.0,6.58761965]
[1743164644837,3.4530634,85300.0,85299.0,6.58761965]
[1743164645037,3.44423341,85300.0,85299.0,6.58761965]
[1743164645678,3.43485342,85300.0,85299.0,6.58761965]
[1743164645869,3.42483343,85300.0,85299.0,6.58761965]
[1743164646204,3.36614789,85300.0,85299.0,6.58761965]
[1743164646854,3.3552679,85300.0,85299.0,6.58761965]
[1743164647795,3.3489279,85300.0,85299.0,6.58761965]
[1743164647987,3.3383679,85300.0,85299.0,6.58761965]
[1743164648188,3.27968236,85300.0,85299.0,6.58761965]
[1743164648397,3.27031236,85300.0,85299.0,6.58761965]
[1743164648943,3.27031236,85300.0,85299.0,6.56261965]
[1743164649165,3.27031236,85300.0,85299.0,6.58761965]
[1743164649746,3.22811236,85300.0,85299.0,6.58761965]
[1743164649949,3.18651237,85300.0,85299.0,6.58761965]
[1743164651039,3.17655237,85300.0,85299.0,6.58761965]
[1743164651238,3.17655237,85300.0,85299.0,2.70692665]
[1743164651394,2.58632356,85300.0,85299.0,2.70692665]
[1743164651590,2.58632356,85300.0,85299.0,7.28472665]
[1743164651807,2.58632356,85300.0,85299.0,7.28460665]
[1743164652204,2.58632356,85300.0,85299.0,7.26070055]
[1743164652745,2.58632356,85300.0,85299.0,6.91203455]
[1743164652899,2.58632356,85300.0,85299.0,6.35232555]
[1743164653099,2.58632356,85300.0,85299.0,5.69231555]
[1743164653370,2.58632356,85300.0,85299.0,5.54153255]
[1743164655801,2.54412356,85300.0,85299.0,5.54153255]
[1743164656223,2.53404356,85300.0,85299.0,5.54153255]
[1743164656821,2.50500356,85300.0,85299.0,5.54153255]
[1743164657606,2.35306315,85300.0,85299.0,5.62233255]
[1743164657815,2.15445917,85300.0,85299.0,5.62233255]
[1743164657969,2.00452452,85300.0,85299.0,5.74593255]
[1743164658188,1.92431325,85300.0,85299.0,5.74593255]
[1743164658398,1.8656278,85300.0,85299.0,5.74593255]
[1743164658754,1.71304563,85300.0,85299.0,5.74593255]
[1743164658952,1.63633018,85300.0,85299.0,5.62233255]
[1743164659185,1.54749473,85300.0,85299.0,5.64585367]
[1743164659412,1.48880928,85300.0,85299.0,5.64585367]
[1743164660398,1.48532928,85300.0,85299.0,5.64585367]
[1743164661175,1.47080928,85300.0,85299.0,5.64585367]
[1743164661383,1.39795928,85300.0,85299.0,5.64585367]
[1743164662538,1.39795928,85300.0,85299.0,5.64581367]
[1743164663665,1.37752928,85300.0,85299.0,5.64581367]
[1743164664022,1.37148928,85300.0,85299.0,5.64581367]
[1743164664424,0.35553328,85300.0,85299.0,5.68235622]
[1743164664638,0.0486,85324.0,85323.0,0.696123]
[1743164664826,0.04864443,85324.0,85323.0,3.45844849]
[1743164665033,4.443e-05,85324.0,85323.0,3.21476149]
[1743164665238,4.443e-05,85324.0,85323.0,1.34591249]
[1743164665436,4.443e-05,85324.0,85323.0,1.12032814]
[1743164665648,4.443e-05,85324.0,85323.0,1.67792814]
[1743164666094,4.443e-05,85324.0,85323.0,1.91233114]
[1743164666289,0.07592163,85326.0,85325.0,0.534397]
[1743164666490,0.07592163,85326.0,85325.0,1.57898149]
[1743164666697,0.07592163,85326.0,85325.0,1.87859149]
[1743164666903,0.07592163,85326.0,85325.0,1.64419449]
[1743164667105,0.07592163,85326.0,85325.0,0.88802049]
[1743164667306,0.07592163,85326.0,85325.0,0.73520249]
[1743164667682,0.07592163,85326.0,85325.0,0.74120249]
[1743164668068,0.07592163,85326.0,85325.0,0.77628763]
[1743164668440,0.07592163,85326.0,85325.0,0.78228763]
[1743164669772,0.07592163,85326.0,85325.0,1.01668463]
[1743164669954,0.07592163,85326.0,85325.0,0.71028063]
[1743164670166,0.07592163,85326.0,85325.0,1.09822763]
[1743164670573,0.07592163,85326.0,85325.0,0.47588363]
[1743164670889,0.07592163,85326.0,85325.0,0.49951977]
[1743164671104,0.07592163,85326.0,85325.0,1.04747277]
[1743164671378,0.12132163,85326.0,85325.0,0.63065892]
[1743164671521,0.12132163,85326.0,85325.0,0.64519977]
[1743164671718,0.12149073,85326.0,85325.0,0.64519977]
[1743164674768,0.12149073,85326.0,85325.0,0.49951977]
[1743164674969,0.12149073,85326.0,85325.0,0.64515977]
[1743164679120,0.12149073,85326.0,85325.0,0.66269497]
[1743164680692,0.12149073,85326.0,85325.0,0.66265497]
[1743164685573,0.12149073,85326.0,85325.0,0.89705197]
[1743164685802,0.12149073,85326.0,85325.0,0.66265497]
[1743164685992,0.12149073,85326.0,85325.0,0.69772733]
[1743164687108,0.11149073,85326.0,85325.0,0.69772733]
[1743164687894,0.0455691,85326.0,85325.0,0.70649617]
[1743164692747,0.0455691,85326.0,85325.0,0.70641617]
[1743164692979,0.0455691,85326.0,85325.0,0.6976494]
[1743164694667,0.0455691,85326.0,85325.0,0.66257497]
[1743164695753,0.0455691,85326.0,85325.0,0.66291297]
[1743164697744,0.0455691,85326.0,85325.0,0.6979874]
[1743164699394,0.0001691,85326.0,85325.0,0.9441034]
[1743164700226,0.0001691,85326.0,85325.0,0.66291297]
[1743164701032,0.0001691,85326.0,85325.0,0.90902897]
[1743164701233,0.0001691,85326.0,85325.0,1.02814797]
[1743164701464,0.0001691,85330.0,85329.0,0.545905]
[1743164701656,0.0001691,85330.0,85329.0,0.67470349]
[1743164701919,0.0001691,85330.0,85329.0,0.42879849]
[1743164702763,0.0001691,85330.0,85329.0,0.43479849]
[1743164703851,0.0001691,85330.0,85329.0,0.48741883]
[1743164704310,0.0001691,85330.0,85329.0,0.49341883]
[1743164705020,0.1264691,85330.0,85329.0,0.63885883]
[1743164707588,0.1264691,85330.0,85329.0,0.49341883]
[1743164707891,0.1264691,85330.0,85329.0,0.63919683]
[1743164709956,0.1381881,85330.0,85329.0,0.17921598]
[1743164710110,0.3725721,85330.0,85329.0,0.06495834]
[1743164710319,0.3725721,85330.0,85329.0,0.76791834]
[1743164711282,0.3725721,85330.0,85329.0,0.73838314]
[1743164711468,0.3725721,85330.0,85329.0,0.74438314]
[1743164712079,0.3725721,85330.0,85329.0,0.75038314]
[1743164713633,0.3725721,85330.0,85329.0,0.715298]
[1743164713887,0.3725721,85330.0,85329.0,0.012338]
[1743164714047,0.3725721,85330.0,85329.0,0.715298]
[1743164714248,0.3725721,85330.0,85329.0,0.75034139]
[1743164714878,0.3725721,85330.0,85329.0,0.04738139]
[1743164715058,0.3725721,85330.0,85329.0,0.75034139]
[1743164715458,0.3725721,85330.0,85329.0,0.04738139]
[1743164715862,0.3725721,85330.0,85329.0,0.75034139]
[1743164716068,0.3725721,85330.0,85329.0,0.04738139]
[1743164716271,0.3725721,85330.0,85329.0,0.75038139]
[1743164717655,0.3725721,85330.0,85329.0,0.04738139]
[1743164717922,0.3725721,85330.0,85329.0,0.75034139]
[1743164720159,0.3725721,85330.0,85329.0,0.715298]
[1743164720854,0.3725721,85330.0,85329.0,0.709298]
[1743164720980,0.3725721,85330.0,85329.0,0.703298]
[1743164721184,0.3725721,85330.0,85329.0,0.707298]
[1743164721426,0.3725721,85330.0,85329.0,0.711298]
[1743164721891,0.3725721,85330.0,85329.0,0.565938]
[1743164722095,0.3725721,85330.0,85329.0,0.711298]
[1743164731324,0.3725721,85330.0,85329.0,0.706218]
[1743164732579,0.3725721,85330.0,85329.0,0.706556]
[1743164735197,0.3725721,85330.0,85329.0,0.7416108]
[1743164738835,0.3725721,85330.0,85329.0,0.0433928]
[1743164739907,0.3725721,85330.0,85329.0,0.0393928]
[1743164740307,0.3725721,85330.0,85329.0,0.0413928]
[1743164740739,0.3725721,85330.0,85329.0,0.006338]
[1743164741206,0.3725721,85330.0,85329.0,0.002338]
[1743164741361,0.3725721,85330.0,85329.0,0.004338]
[1743164741769,0.3725721,85330.0,85329.0,0.000338]
[1743164742088,0.3725721,85330.0,85329.0,0.002338]
[1743164747536,0.2345531,85330.0,85329.0,0.147538]
[1743164747721,0.2462721,85330.0,85329.0,0.147538]
[1743164748986,0.3230721,85330.0,85329.0,0.147538]
[1743164754358,0.2462721,85330.0,85329.0,0.147538]
[1743164754665,0.0118881,85330.0,85329.0,0.147498]
[1743164754890,0.2462721,85330.0,85329.0,0.147498]
[1743164760724,0.2462721,85330.0,85329.0,0.705178]
[1743164761283,0.2462721,85330.0,85329.0,0.81943564]
[1743164761284,0.0001691,85330.0,85329.0,0.81943564]
[1743164761520,0.0118881,85330.0,85329.0,0.81943564]
[1743164762085,0.2462721,85330.0,85329.0,0.81943564]
[1743164762321,0.2462721,85330.0,85329.0,0.81743564]
[1743164762839,0.2462721,85330.0,85329.0,0.82243564]
[1743164764383,0.2462721,85330.0,85329.0,0.708178]
[1743164764587,0.3251721,85330.0,85329.0,0.708178]
[1743164768197,0.3251721,85330.0,85329.0,0.563018]
[1743164768375,0.3251721,85330.0,85329.0,0.708058]
[1743164772292,0.42351572,85330.0,85329.0,0.563018]
[1743164772495,0.42351572,85330.0,85329.0,0.708018]
[1743164773458,0.3251721,85330.0,85329.0,0.708018]
[1743164779602,0.3251721,85330.0,85329.0,0.150338]
[1743164782052,0.3251721,85330.0,85329.0,0.150298]
[1743164788436,0.2462721,85330.0,85329.0,0.150298]
[1743164791420,0.2345531,85330.0,85329.0,0.26455564]
[1743164791622,0.2462721,85330.0,85329.0,0.26455564]
[1743164795866,0.0001691,85330.0,85329.0,0.26455564]
[1743164796023,0.2345531,85330.0,85329.0,0.26455564]
[1743164796223,0.2462721,85330.0,85329.0,0.26455564]
[1743164805863,0.0001691,85330.0,85329.0,0.26455564]
[1743164806067,0.0001691,85330.0,85329.0,0.27909649]
[1743164806660,0.2345531,85330.0,85329.0,0.27909649]
[1743164807820,0.0001691,85330.0,85329.0,0.27909649]
[1743164808402,0.0001691,85330.0,85329.0,0.83673649]
[1743164808606,0.0001691,85330.0,85329.0,0.83373649]
[1743164809145,0.0001691,85330.0,85329.0,0.83173649]
[1743164809350,0.0001691,85330.0,85329.0,1.19032249]
[1743164809656,0.0001691,85330.0,85329.0,1.07153649]
[1743164809791,0.0001691,85330.0,85329.0,1.06853649]
[1743164810236,0.0001691,85330.0,85329.0,1.08608243]
[1743164810445,0.0001691,85330.0,85329.0,1.08908243]
[1743164811262,0.0001691,85330.0,85329.0,1.09508243]
[1743164811460,0.0001691,85330.0,85329.0,1.10407562]
[1743164811659,0.0001691,85330.0,85329.0,1.1448753]
[1743164812213,0.0001691,85330.0,85329.0,1.3852613]
[1743164812977,0.0001691,85330.0,85329.0,1.3969803]
[1743164814401,0.0001691,85330.0,85329.0,1.6969803]
[1743164815193,0.0001691,85331.0,85330.0,0.79114385]
[1743164815366,0.0001691,85331.0,85330.0,5.48320149]
[1743164815551,0.0001691,85331.0,85330.0,4.98659249]
[1743164816134,0.0003382,85336.0,85335.0,0.41062885]
[1743164816283,0.0003382,85336.0,85335.0,2.54880349]
[1743164816447,0.0003382,85336.0,85335.0,2.68086549]
[1743164816670,0.0003382,85336.0,85335.0,2.15592549]
[1743164817691,2e-07,85336.0,85335.0,2.46192549]
[1743164817900,0.002,85349.0,85348.0,0.84129085]
[1743164818186,0.0003382,85358.0,85357.0,0.696025]
[1743164818336,0.00078273,85358.0,85357.0,1.05046349]
[1743164818932,0.00078273,85358.0,85357.0,1.05910834]
[1743164819125,0.00078273,85358.0,85357.0,1.07259871]
[1743164819529,0.00078273,85358.0,85357.0,1.12829871]
[1743164819724,0.00078273,85358.0,85357.0,1.15228815]
[1743164820114,0.00078273,85358.0,85357.0,1.15828815]
[1743164821146,0.00078273,85358.0,85357.0,1.19037283]
[1743164821475,0.00078273,85358.0,85357.0,1.05967283]
[1743164821680,0.00078273,85358.0,85357.0,0.92674783]
[1743164821880,0.00078273,85358.0,85357.0,1.07134783]
[1743164823001,0.00078273,85358.0,85357.0,1.02754815]
[1743164823687,0.00078273,85358.0,85357.0,0.88294815]
[1743164823891,0.00078273,85358.0,85357.0,1.02754815]
[1743164825947,0.00078273,85358.0,85357.0,1.02750815]
[1743164826143,0.00078273,85358.0,85357.0,1.58494815]
[1743164827585,0.00078273,85358.0,85357.0,1.60249409]
[1743164829166,0.00078273,85358.0,85357.0,1.58494815]
[1743164829736,0.00078273,85358.0,85357.0,1.62874783]
[1743164831834,0.005,85369.0,85368.0,0.395992]
[1743164832038,0.005,85369.0,85368.0,1.77031149]
[1743164832039,0.00511972,85369.0,85368.0,1.77031149]
[1743164832352,0.00511972,85369.0,85368.0,1.87531149]
[1743164832946,0.00511972,85369.0,85368.0,1.87031149]
[1743164833163,0.00511972,85369.0,85368.0,1.92611117]
[1743164833623,0.00511972,85369.0,85368.0,1.94837489]
[1743164833901,0.00511972,85369.0,85368.0,1.95437489]
[1743164834201,0.00511972,85369.0,85368.0,1.94001889]
[1743164834504,0.00511972,85369.0,85368.0,1.88169589]
[1743164834721,0.00511972,85369.0,85368.0,1.45075389]
[1743164835009,0.00511972,85369.0,85368.0,1.44475389]
[1743164835442,0.00511972,85369.0,85368.0,1.45075389]
[1743164836243,0.00511972,85369.0,85368.0,2.11397189]
[1743164838002,0.00528872,85369.0,85368.0,2.11397189]
[1743164838210,0.00528872,85369.0,85368.0,1.76217089]
[1743164838513,0.00528872,85369.0,85368.0,1.73552589]
[1743164838864,0.002,85379.0,85378.0,0.15]
[1743164839068,0.002,85379.0,85378.0,0.95749049]
[1743164839615,0.002,85379.0,85378.0,0.72323849]
[1743164839771,0.002,85379.0,85378.0,0.75150221]
[1743164840112,0.002,85379.0,85378.0,0.75750221]
[1743164840324,0.002,85379.0,85378.0,0.76350221]
[1743164840525,0.002,85379.0,85378.0,0.99775421]
[1743164841283,0.002,85379.0,85378.0,1.04155389]
[1743164841633,0.002,85379.0,85378.0,1.62177123]
[1743164841801,0.002,85379.0,85378.0,1.38751923]
[1743164842391,0.002,85379.0,85378.0,1.62177123]
[1743164842973,0.002,85379.0,85378.0,1.40564969]
[1743164844215,0.002,85379.0,85378.0,1.38751923]
[1743164844816,0.002,85379.0,85378.0,1.24307923]
[1743164845042,0.002,85379.0,85378.0,1.38747923]
[1743164845242,0.002,85379.0,85378.0,1.24307923]
[1743164845448,0.002,85379.0,85378.0,1.38747923]
[1743164845669,0.002,85379.0,85378.0,1.24307923]
[1743164850795,0.002169,85379.0,85378.0,1.24307923]
[1743164851089,0.002169,85379.0,85378.0,1.47733123]
[1743164853260,0.002169,85379.0,85378.0,1.48904323]
[1743164854478,0.000338,85387.0,85381.0,0.3]
[1743164854687,0.000338,85387.0,85386.0,0.67473949]
[1743164855069,0.000338,85387.0,85386.0,0.68363679]
[1743164855698,0.000338,85387.0,85386.0,0.43769579]
[1743164855885,0.000338,85387.0,85386.0,0.99497579]
[1743164856090,0.000338,85387.0,85386.0,1.00097579]
[1743164856538,0.000338,85387.0,85386.0,1.04477547]
[1743164856679,0.000338,85387.0,85386.0,1.07303919]
[1743164857715,0.000338,85387.0,85386.0,1.07903919]
[1743164860323,0.295576,85387.0,85386.0,0.75560104]
[1743164860583,0.049638,85387.0,85386.0,0.75560104]
[1743164860786,0.049638,85387.0,85386.0,0.77014189]
[1743164861373,0.049638,85387.0,85386.0,0.79197823]
[1743164863056,0.000338,85387.0,85386.0,0.79197823]
[1743164864694,0.234565,85387.0,85386.0,0.79197823]
[1743164865082,0.000338,85387.0,85386.0,0.79197823]
[1743164865282,0.000338,85387.0,85386.0,0.74817855]
[1743164866318,0.295061,85389.0,85387.0,0.01454085]
[1743164866522,0.29515983,85389.0,85388.0,0.12879849]
[1743164866717,0.23432183,85389.0,85388.0,0.12879849]
[1743164867314,0.24603283,85389.0,85388.0,0.12879849]
[1743164867698,0.24603283,85389.0,85388.0,0.15706221]
[1743164867894,9.883e-05,85389.0,85388.0,0.15706221]
[1743164868313,9.883e-05,85389.0,85388.0,0.16306221]
[1743164868716,9.883e-05,85389.0,85388.0,0.18989855]
[1743164878187,0.23432083,85389.0,85388.0,0.18989855]
[1743164878833,9.883e-05,85389.0,85388.0,0.18989855]
[1743164881610,0.23432083,85389.0,85388.0,0.18989855]
[1743164882083,0.24603183,85389.0,85388.0,0.18989855]
[1743164882380,0.23432083,85389.0,85388.0,0.18989855]
[1743164883196,0.22932083,85389.0,85388.0,0.18989855]
[1743164884405,0.32383183,85389.0,85388.0,0.1753577]
[1743164884619,0.0828,85389.0,85388.0,0.1753577]
[1743164884820,0.328733,85389.0,85388.0,0.1753577]
[1743164885025,0.0828,85389.0,85388.0,0.1753577]
[1743164885426,0.0828,85389.0,85388.0,0.7325577]
[1743164885566,0.0828,85389.0,85388.0,0.1753577]
[1743164885957,0.0828,85389.0,85388.0,0.7325577]
[1743164886108,0.0828,85389.0,85388.0,0.1753577]
[1743164886515,0.0828,85389.0,85388.0,0.1653577]
[1743164886720,0.0828,85389.0,85388.0,0.7225577]
[1743164886944,0.317022,85389.0,85388.0,0.7225977]
[1743164887550,0.0828,85389.0,85388.0,0.7225977]
[1743164887980,0.317022,85389.0,85388.0,0.7225977]
[1743164888690,0.317022,85389.0,85388.0,0.7229357]
[1743164888894,0.082969,85389.0,85388.0,0.7229357]
[1743164892693,0.000169,85389.0,85388.0,0.73747655]
[1743164898420,0.246102,85389.0,85388.0,0.7229357]
[1743164898654,0.000169,85389.0,85388.0,0.7229357]
[1743164899450,0.234391,85389.0,85388.0,0.7229357]
[1743164899650,0.246102,85389.0,85388.0,0.7229357]
[1743164901948,0.246102,85389.0,85388.0,0.73747655]
[1743164903486,0.246102,85389.0,85388.0,0.7229357]
[1743164907611,0.246102,85389.0,85388.0,0.73747655]
[1743164907819,0.246102,85389.0,85388.0,0.7229357]
[1743164908422,0.329002,85389.0,85388.0,0.7229357]
[1743164913201,0.246102,85389.0,85388.0,0.73747655]
[1743164913404,0.246102,85389.0,85388.0,0.7229357]
[1743164915206,0.246102,85389.0,85388.0,0.73747655]
[1743164917540,0.000169,85389.0,85388.0,0.73747655]
[1743164917762,0.234391,85389.0,85388.0,0.73747655]
[1743164918178,0.246102,85389.0,85388.0,0.73747655]
[1743164919908,0.234391,85389.0,85388.0,0.73747655]
[1743164920110,0.000169,85389.0,85388.0,0.73747655]
[1743164921196,0.234391,85389.0,85388.0,0.73747655]
[1743164922103,0.000169,85389.0,85388.0,0.73747655]
[1743164922638,0.234391,85389.0,85388.0,0.73747655]
[1743164922977,0.246102,85389.0,85388.0,0.73747655]
[1743164923210,0.000169,85389.0,85388.0,0.73747655]
[1743164927493,0.000169,85389.0,85388.0,0.97170055]
[1743164928902,0.000169,85389.0,85388.0,0.99529789]
[1743164936123,0.000169,85389.0,85388.0,0.76107389]
[1743164936327,0.000169,85389.0,85388.0,0.97170055]
[1743164938124,0.000169,85389.0,85388.0,1.27170055]
[1743164938420,0.000169,85389.0,85388.0,2.54752702]
[1743164938792,0.000169,85405.0,85404.0,0.684181]
[1743164938996,0.000169,85405.0,85404.0,0.81297949]
[1743164939702,0.000169,85405.0,85404.0,0.82585007]
[1743164939903,0.000169,85405.0,85404.0,0.85411379]
[1743164940309,0.000169,85405.0,85404.0,0.62593279]
[1743164940471,0.000169,85405.0,85404.0,0.88309638]
[1743164941079,0.000169,85405.0,85404.0,0.88909638]
[1743164941337,0.000169,85405.0,85404.0,0.87822909]
[1743164941880,0.000169,85405.0,85404.0,0.45652465]
[1743164944888,0.000169,85405.0,85404.0,0.43912822]
[1743164945229,0.000169,85405.0,85404.0,0.67330922]
[1743164945428,0.000169,85405.0,85404.0,0.43912822]
[1743164945568,0.000169,85405.0,85404.0,0.67330922]
[1743164946187,0.000169,85405.0,85404.0,0.69070565]
[1743164949351,0.000169,85405.0,85404.0,0.45652465]
[1743164949514,0.000169,85405.0,85404.0,0.69070565]
[1743164950367,0.3218717,85413.0,85405.0,0.3]
[1743164950519,0.3218717,85413.0,85407.0,0.3]
[1743164950719,0.3218717,85413.0,85408.0,0.11425764]
[1743164950720,0.0877157,85413.0,85408.0,0.11425764]
[1743164951352,0.3218717,85413.0,85408.0,0.11425764]
[1743164951554,0.0877157,85413.0,85409.0,0.01454085]
[1743164951749,0.0080157,85413.0,85410.0,0.11425764]
[1743164951985,0.0080157,85413.0,85411.0,0.01454085]
[1743164952186,0.0080157,85413.0,85412.0,0.12879849]
[1743164952839,0.00814043,85413.0,85412.0,0.12879849]
[1743164953436,0.00814043,85413.0,85412.0,0.11425764]
[1743164953678,0.00814043,85413.0,85412.0,0.12025764]
[1743164954188,0.24229643,85413.0,85412.0,0.12025764]
[1743164954384,0.25400343,85413.0,85412.0,0.12025764]
[1743164954612,0.25400343,85413.0,85412.0,0.12625764]
[1743164956136,0.00814043,85413.0,85412.0,0.12625764]
[1743164956902,0.00814043,85413.0,85412.0,0.14079849]
[1743164957880,0.00814043,85413.0,85412.0,0.37495749]
[1743164958616,0.00814043,85413.0,85412.0,0.14079849]
[1743164959201,0.00814043,85413.0,85412.0,0.37495749]
[1743164959400,0.00814043,85413.0,85412.0,0.14079849]
[1743164961862,0.00814043,85413.0,85412.0,0.14113649]
[1743164962203,0.00830943,85413.0,85412.0,0.14113649]
[1743164962859,0.24246543,85413.0,85412.0,0.12659564]
[1743164963020,0.00830943,85413.0,85412.0,0.12659564]
[1743164963784,0.24246543,85413.0,85412.0,0.12659564]
[1743164963972,0.25417243,85413.0,85412.0,0.12659564]
[1743164964298,0.24246543,85413.0,85412.0,0.12659564]
[1743164964642,0.25417243,85413.0,85412.0,0.12659564]
[1743164968303,0.25417243,85413.0,85412.0,0.14399207]
[1743164969529,0.25417243,85413.0,85412.0,0.12659564]
[1743164969730,0.0001691,85417.0,85412.0,0.20239564]
[1743164969936,0.011693,85516.0,85490.0,0.638945]
[1743164970146,0.01181632,85527.0,85498.0,0.1553042]
[1743164970147,0.011695,85500.0,85498.0,0.1553042]
[1743164970336,0.013865,85499.0,85498.0,0.1553042]
[1743164970534,0.01430932,85499.0,85498.0,0.0053042]
[1743164970806,0.31430932,85499.0,85498.0,0.0053042]
[1743164971043,0.18136982,85499.0,85498.0,0.0053042]
[1743164971308,0.14136208,85499.0,85498.0,0.0053042]
[1743164971558,0.13850932,85499.0,85498.0,0.0053042]
[1743164972333,0.13850932,85499.0,85498.0,0.0063042]
[1743164972743,0.13850932,85499.0,85498.0,0.0073042]
[1743164972949,0.14134032,85499.0,85498.0,0.12156184]
[1743164973454,0.14134032,85499.0,85498.0,0.0073042]
[1743164974629,0.05914032,85499.0,85498.0,0.0073042]
[1743164974881,0.00044432,85499.0,85498.0,0.12156184]
[1743164975491,0.00061332,85499.0,85498.0,0.69110269]
[1743164975691,0.01230932,85499.0,85498.0,0.27156184]
[1743164975928,0.00061332,85499.0,85498.0,0.12156184]
[1743164976130,0.00061332,85499.0,85498.0,0.28079849]
[1743164976264,0.00061332,85499.0,85498.0,0.68079849]
[1743164976473,0.00061332,85499.0,85498.0,0.57979849]
[1743164977178,0.00061332,85499.0,85498.0,0.41425764]
[1743164977600,0.00061332,85499.0,85498.0,0.42025764]
[1743164977813,0.00061332,85499.0,85498.0,0.43479849]
[1743164978012,0.00061332,85499.0,85498.0,0.43679849]
[1743164978287,0.00061332,85499.0,85498.0,0.12225764]
[1743164978502,0.01230932,85499.0,85498.0,0.12025764]
[1743164978881,0.01230932,85499.0,85498.0,0.12625764]
[1743164979081,0.06551521,85499.0,85498.0,0.012]
[1743164979317,0.01230932,85499.0,85498.0,0.006]
[1743164979648,0.01230932,85499.0,85498.0,0.008]
[1743164980289,0.01230932,85499.0,85498.0,0.002]
[1743164980797,0.01230932,85499.0,85498.0,0.004]
[1743164981199,0.01230932,85499.0,85498.0,0.006]
[1743164981396,0.01230932,85499.0,85498.0,0.002]
[1743164981608,0.011699,85475.0,85466.0,0.15]
[1743164981807,0.011699,85477.0,85468.0,0.01454085]
[1743164982008,0.011699,85477.0,85469.0,0.11425764]
[1743164982392,0.011699,85476.0,85469.0,0.11425764]
[1743164982590,0.011699,85475.0,85469.0,0.11425764]
[1743164983614,0.011699,85475.0,85469.0,0.12025764]
[1743164984136,0.011699,85475.0,85469.0,0.12625764]
[1743164984939,0.011699,85474.0,85469.0,0.12625764]
[1743164985165,0.011699,85476.0,85469.0,0.12625764]
[1743164985382,0.011698,85480.0,85472.0,0.01454085]
[1743164985510,0.011698,85483.0,85474.0,0.01454085]
[1743164985853,0.011698,85483.0,85475.0,0.11425764]
[1743164986090,0.011697,85490.0,85479.0,0.01454085]
[1743164986264,0.011697,85490.0,85489.0,0.11425764]
[1743164986504,0.245642,85490.0,85489.0,0.11425764]
[1743164986703,0.245642,85490.0,85474.0,0.3]
[1743164986704,0.011699,85474.0,85473.0,0.15]
[1743164986852,0.011699,85474.0,85473.0,0.26425764]
[1743164987058,0.245656,85486.0,85474.0,0.01454085]
[1743164987302,0.245656,85486.0,85473.0,0.27879849]
[1743164987303,0.011698,85479.0,85475.0,0.11425764]
[1743164987604,0.011699,85476.0,85475.0,0.12879849]
[1743164988388,0.011699,85476.0,85475.0,0.13479849]
[1743164989265,0.011699,85476.0,85475.0,0.14079849]
[1743164989802,0.011699,85476.0,85475.0,0.13479849]
[1743164990024,0.011699,85476.0,85475.0,0.14079849]
[1743164992129,0.233978,85478.0,85475.0,0.14079849]
[1743164992299,0.245682,85476.0,85475.0,0.14079849]
[1743164994996,0.011699,85476.0,85475.0,0.14079849]
[1743164996724,0.011699,85476.0,85475.0,0.15805079]
[1743164996859,0.011699,85476.0,85475.0,0.14350994]
[1743164998476,0.006699,85476.0,85475.0,0.14350994]
[1743165000379,0.245693,85472.0,85471.0,8e-07]
[1743165001123,0.0474,85492.0,85478.0,0.011698]
[1743165001392,0.0474,85492.0,85475.0,0.011699]
[1743165001393,0.011697,85491.0,85490.0,0.11425764]
[1743165001593,0.233911,85503.0,85490.0,0.11425764]
[1743165001795,0.245639,85491.0,85483.0,0.00233954]
[1743165002000,0.011696,85494.0,85477.0,0.011699]
[1743165002001,0.011696,85493.0,85477.0,0.011699]
[1743165002199,0.011698,85479.0,85475.0,0.01454085]
[1743165002459,0.011698,85479.0,85471.0,0.0010008]
[1743165002460,0.245693,85472.0,85471.0,0.0010008]
[1743165002655,0.011699,85475.0,85471.0,0.0020008]
[1743165002854,0.011698,85479.0,85471.0,0.0020008]
[1743165003055,0.011699,85472.0,85471.0,0.0020008]
[1743165003259,0.625186,85440.0,85439.0,5.4e-07]
[1743165003465,0.234211,85393.0,85392.0,0.0003382]
[1743165003631,0.234211,85393.0,85349.0,0.079838]
[1743165003632,0.03671,85392.0,85391.0,2e-07]
[1743165003833,0.03671,85392.0,85363.0,0.1]
[1743165003834,0.011712,85379.0,85363.0,0.1]
[1743165004103,0.245987,85370.0,85349.0,0.000338]
[1743165004305,0.011712,85382.0,85349.0,0.000338]
[1743165004306,0.011709,85400.0,85380.0,0.011712]